fUSD/lending_fUSD_20240714
["ID","MTS","AMOUNT","RATE_DAILY","PERIOD"]
[332066224,1720947089290,-823.13,0.00013972,2]
[332066225,1720947089300,-500.0,0.00013972,2]
[332066226,1720947089309,-1622.83,0.00013972,2]
[332066227,1720947089319,-4.49435915,0.00013972,2]
[332066228,1720947089330,-498.56351199,0.00013972,2]
[332066229,1720947089341,-4.20212886,0.00013972,2]
[332066230,1720947089566,-244.186025,0.00013972,2]
[332066231,1720947089579,-500.0,0.00013972,2]
[332066232,1720947089588,-43.31133873,0.00013972,2]
[332066233,1720947089600,-200.87468627,0.00013972,2]
[332066234,1720947089609,-1935.6,0.00013972,2]
[332066235,1720947089618,-1375.77,0.00013972,2]
[332066236,1720947089628,-585.8,0.00013972,2]
[332066237,1720947089637,-477.43517908,0.00013972,2]
[332066238,1720947089646,-647.64,0.00013972,2]
[332066239,1720947089655,-500.0,0.00013972,2]
[332066240,1720947089667,-597.66,0.00013972,2]
[332066241,1720947089678,-500.0,0.00013972,2]
[332066242,1720947089688,-677.66323781,0.00013972,2]
[332066243,1720947089701,-381.96945056,0.00013972,2]
[332066244,1720947089727,-379.71008372,0.00013753,2]
[332066245,1720947089741,-120.28991628,0.00013753,2]
[332066246,1720947089752,-500.0,0.00013917,2]
[332066247,1720947089762,-142.34731163,0.00013972,2]
[332066248,1720947089773,-32.25461131,0.00013972,2]
[332066249,1720947089785,-467.74538869,0.00013972,2]
[332066250,1720947089795,-500.0,0.00013972,2]
[332066251,1720947089804,-667.26,0.00013972,2]
[332066252,1720947089813,-958.34,0.00013972,2]
[332066253,1720947089822,-500.0,0.00013972,2]
[332066254,1720947089833,-500.0,0.00013972,2]
[332066255,1720947089842,-1016.75,0.00013972,2]
[332066256,1720947089853,-978.03,0.00013972,2]
[332066257,1720947089864,-607.39,0.00013972,2]
[332066258,1720947089876,-500.0,0.00013972,2]
[332066259,1720947089886,-500.0,0.00013972,2]
[332066260,1720947089896,-951.55,0.00013972,2]
[332066261,1720947089906,-849.47,0.00013972,2]
[332066262,1720947089917,-151.0,0.00013972,2]
[332066263,1720947089927,-1097.99,0.00013972,2]
[332066264,1720947089937,-500.0,0.00013972,2]
[332066265,1720947089946,-1336.9,0.00013972,2]
[332066266,1720947089958,-1252.98,0.00013972,2]
[332066267,1720947089968,-500.0,0.00013972,2]
[332066268,1720947089978,-151.0,0.00013972,2]
[332066269,1720947089989,-575.08,0.00013972,2]
[332066270,1720947089999,-701.0,0.00013972,2]
[332066271,1720947090008,-500.0,0.00013972,2]
[332066272,1720947090020,-729.85,0.00013972,2]
[332066273,1720947090028,-500.0,0.00013972,2]
[332066274,1720947090038,-760.39,0.00013972,2]
[332066275,1720947090049,-500.0,0.00013972,2]
[332066276,1720947090058,-500.0,0.00013972,2]
[332066277,1720947090068,-567.9,0.00013972,2]
[332066278,1720947090077,-500.0,0.00013972,2]
[332066279,1720947090086,-500.0,0.00013972,2]
[332066280,1720947090095,-572.49,0.00013972,2]
[332066281,1720947090104,-500.0,0.00013972,2]
[332066282,1720947090114,-904.83,0.00013972,2]
[332066283,1720947090124,-500.0,0.00013972,2]
[332066284,1720947090134,-904.78,0.00013972,2]
[332066285,1720947090143,-500.0,0.00013972,2]
[332066286,1720947090153,-509.21,0.00013972,2]
[332066287,1720947090163,-682.68,0.00013972,2]
[332066288,1720947090174,-1095.11,0.00013972,2]
[332066289,1720947090183,-509.03,0.00013972,2]
[332066290,1720947090192,-500.0,0.00013972,2]
[332066291,1720947090203,-500.0,0.00013972,2]
[332066292,1720947090212,-500.0,0.00013972,2]
[332066293,1720947090222,-500.0,0.00013972,2]
[332066294,1720947090232,-756.52,0.00013972,2]
[332066295,1720947090242,-784.66,0.00013972,2]
[332066296,1720947090252,-1185.22,0.00013972,2]
[332066297,1720947090263,-925.63,0.00013972,2]
[332066298,1720947090273,-638.28,0.00013972,2]
[332066299,1720947090283,-297.936491,0.00013972,2]
[332066300,1720947090293,-500.0,0.00013972,2]
[332066301,1720947090303,-957.88,0.00013972,2]
[332066302,1720947090312,-844.6,0.00013972,2]
[332066303,1720947090321,-297.936491,0.00013972,2]
[332066304,1720947090330,-500.0,0.00013972,2]
[332066305,1720947090340,-913.64,0.00013972,2]
[332066306,1720947090349,-1051.87,0.00013972,2]
[332066307,1720947090358,-507.28,0.00013972,2]
[332066308,1720947090367,-622.1,0.00013972,2]
[332066309,1720947090376,-939.55,0.00013972,2]
[332066310,1720947090385,-860.51,0.00013972,2]
[332066311,1720947090394,-356.44514911,0.00013972,2]
[332066312,1720947090410,-357.02485089,0.00013972,2]
[332066313,1720947090419,-1114.15,0.00013972,2]
[332066314,1720947090428,-500.0,0.00013972,2]
[332066315,1720947090438,-500.0,0.00013972,2]
[332066316,1720947090447,-500.0,0.00013972,2]
[332066317,1720947090456,-1149.2,0.00013972,2]
[332066318,1720947090465,-637.98,0.00013972,2]
[332066319,1720947090474,-990.56,0.00013972,2]
[332066320,1720947090485,-1660.12,0.00013972,2]
[332066321,1720947090498,-355.629917,0.00013972,2]
[332066322,1720947090508,-1165.53,0.00013972,2]
[332066323,1720947090519,-500.0,0.00013972,2]
[332066324,1720947090528,-772.82,0.00013972,2]
[332066325,1720947090539,-500.0,0.00013972,2]
[332066326,1720947090548,-355.629917,0.00013972,2]
[332066327,1720947090558,-500.0,0.00013972,2]
[332066328,1720947090568,-500.0,0.00013972,2]
[332066329,1720947090578,-846.67,0.00013972,2]
[332066330,1720947090587,-780.44,0.00013972,2]
[332066331,1720947090596,-817.86,0.00013972,2]
[332066332,1720947090605,-500.0,0.00013972,2]
[332066333,1720947090614,-738.59,0.00013972,2]
[332066334,1720947090623,-747.33,0.00013972,2]
[332066335,1720947090633,-500.0,0.00013972,2]
[332066336,1720947090642,-500.0,0.00013972,2]
[332066337,1720947090651,-500.0,0.00013972,2]
[332066338,1720947090660,-579.35,0.00013972,2]
[332066339,1720947090670,-1099.8,0.00013972,2]
[332066340,1720947090679,-1233.5,0.00013972,2]
[332066341,1720947090688,-936.65,0.00013972,2]
[332066342,1720947090697,-478.11,0.00013972,2]
[332066343,1720947090707,-678.54,0.00013972,2]
[332066344,1720947090716,-510.01,0.00013972,2]
[332066345,1720947090725,-500.0,0.00013972,2]
[332066346,1720947090734,-799.52,0.00013972,2]
[332066347,1720947090743,-983.06,0.00013972,2]
[332066348,1720947090752,-560.27,0.00013972,2]
[332066349,1720947090762,-638.34,0.00013972,2]
[332066350,1720947090772,-206.61106764,0.00013972,2]
[332066351,1720947090782,-1070.73,0.00013972,2]
[332066352,1720947090791,-500.0,0.00013972,2]
[332066353,1720947090801,-583.76,0.00013972,2]
[332066354,1720947090810,-311.8,0.00013972,2]
[332066355,1720947090819,-773.87,0.00013972,2]
[332066356,1720947090828,-151.0,0.00013972,2]
[332066357,1720947090838,-914.03,0.00013972,2]
[332066358,1720947090847,-1043.98,0.00013972,2]
[332066359,1720947090857,-571.39,0.00013972,2]
[332066360,1720947090866,-500.0,0.00013972,2]
[332066361,1720947090875,-500.0,0.00013972,2]
[332066362,1720947090884,-833.58,0.00013972,2]
[332066363,1720947090894,-816.75,0.00013972,2]
[332066364,1720947090903,-500.0,0.00013972,2]
[332066365,1720947090912,-1418.44,0.00013972,2]
[332066366,1720947090921,-1584.7,0.00013972,2]
[332066367,1720947090930,-500.0,0.00013972,2]
[332066368,1720947090939,-500.0,0.00013972,2]
[332066369,1720947090947,-500.0,0.00013972,2]
[332066370,1720947090956,-500.0,0.00013972,2]
[332066371,1720947090966,-500.0,0.00013972,2]
[332066372,1720947090975,-763.32,0.00013972,2]
[332066373,1720947090985,-500.0,0.00013972,2]
[332066374,1720947090994,-500.0,0.00013972,2]
[332066375,1720947091004,-666.0,0.00013972,2]
[332066376,1720947091012,-635.69,0.00013972,2]
[332066377,1720947091024,-500.0,0.00013972,2]
[332066378,1720947091032,-664.93,0.00013972,2]
[332066379,1720947091041,-935.55,0.00013972,2]
[332066380,1720947091050,-500.0,0.00013972,2]
[332066381,1720947091060,-500.0,0.00013972,2]
[332066382,1720947091069,-1460.2,0.00013972,2]
[332066383,1720947091078,-500.0,0.00013972,2]
[332066384,1720947091087,-1032.43,0.00013972,2]
[332066385,1720947091096,-711.57,0.00013972,2]
[332066386,1720947091105,-500.0,0.00013972,2]
[332066387,1720947091114,-639.19,0.00013972,2]
[332066388,1720947091124,-500.0,0.00013972,2]
[332066389,1720947091133,-1462.85,0.00013972,2]
[332066390,1720947091142,-500.0,0.00013972,2]
[332066391,1720947091151,-500.0,0.00013972,2]
[332066392,1720947091160,-500.0,0.00013972,2]
[332066393,1720947091170,-1019.09,0.00013972,2]
[332066394,1720947091179,-500.0,0.00013972,2]
[332066395,1720947091188,-1954.78,0.00013972,2]
[332066396,1720947091197,-1900.61,0.00013972,2]
[332066397,1720947091206,-1133.11,0.00013972,2]
[332066398,1720947091215,-783.41,0.00013972,2]
[332066399,1720947091223,-500.0,0.00013972,2]
[332066400,1720947091232,-500.0,0.00013972,2]
[332066401,1720947091241,-1360.58,0.00013972,2]
[332066402,1720947091250,-532.34,0.00013972,2]
[332066403,1720947091260,-318.62501392,0.00013972,2]
[332066404,1720947091270,-1516.35,0.00013972,2]
[332066405,1720947091279,-200.463705,0.00013972,2]
[332066406,1720947091289,-565.98,0.00013972,2]
[332066407,1720947091299,-973.22,0.00013972,2]
[332066408,1720947091310,-923.97,0.00013972,2]
[332066409,1720947091319,-500.0,0.00013972,2]
[332066410,1720947091330,-513.15,0.00013972,2]
[332066411,1720947091340,-200.463705,0.00013972,2]
[332066412,1720947091349,-151.0,0.00013972,2]
[332066413,1720947091361,-1966.78,0.00013972,2]
[332066414,1720947091371,-500.0,0.00013972,2]
[332066415,1720947091381,-1253.29,0.00013972,2]
[332066416,1720947091390,-1429.45,0.00013972,2]
[332066417,1720947091399,-500.0,0.00013972,2]
[332066418,1720947091409,-1188.98,0.00013972,2]
[332066419,1720947091419,-500.0,0.00013972,2]
[332066420,1720947091428,-668.44,0.00013972,2]
[332066421,1720947091438,-220.33616263,0.00013972,2]
[332066422,1720947091447,-1262.84,0.00013972,2]
[332066423,1720947091456,-870.18,0.00013972,2]
[332066424,1720947091465,-700.32,0.00013972,2]
[332066425,1720947091475,-855.09,0.00013972,2]
[332066426,1720947091484,-500.0,0.00013972,2]
[332066427,1720947091497,-500.0,0.00013972,2]
[332066428,1720947091506,-500.0,0.00013972,2]
[332066429,1720947091515,-500.0,0.00013972,2]
[332066430,1720947091527,-500.0,0.00013972,2]
[332066431,1720947091537,-739.83,0.00013972,2]
[332066432,1720947091546,-1243.55,0.00013972,2]
[332066433,1720947091556,-1077.21,0.00013972,2]
[332066434,1720947091566,-792.72,0.00013972,2]
[332066435,1720947091577,-500.0,0.00013972,2]
[332066436,1720947091586,-739.16,0.00013972,2]
[332066437,1720947091595,-500.0,0.00013972,2]
[332066438,1720947091605,-899.11,0.00013972,2]
[332066439,1720947091615,-500.0,0.00013972,2]
[332066440,1720947091624,-500.0,0.00013972,2]
[332066441,1720947091634,-500.0,0.00013972,2]
[332066442,1720947091643,-1090.12,0.00013972,2]
[332066443,1720947091652,-1590.65,0.00013972,2]
[332066444,1720947091661,-500.0,0.00013972,2]
[332066445,1720947091670,-1739.03,0.00013972,2]
[332066446,1720947091680,-500.0,0.00013972,2]
[332066447,1720947091689,-500.0,0.00013972,2]
[332066448,1720947091699,-851.62,0.00013972,2]
[332066449,1720947091708,-500.0,0.00013972,2]
[332066450,1720947091718,-151.0,0.00013972,2]
[332066451,1720947091727,-500.0,0.00013972,2]
[332066452,1720947091736,-714.08,0.00013972,2]
[332066453,1720947091746,-579.95,0.00013972,2]
[332066454,1720947091756,-1879.97,0.00013972,2]
[332066455,1720947091765,-500.0,0.00013972,2]
[332066456,1720947091777,-1949.87,0.00013972,2]
[332066457,1720947091786,-500.0,0.00013972,2]
[332066458,1720947091795,-954.45,0.00013972,2]
[332066459,1720947091804,-682.65,0.00013972,2]
[332066460,1720947091813,-500.0,0.00013972,2]
[332066461,1720947091822,-500.0,0.00013972,2]
[332066462,1720947091835,-500.0,0.00013972,2]
[332066463,1720947091846,-1125.26,0.00013972,2]
[332066464,1720947091855,-913.57,0.00013972,2]
[332066465,1720947091866,-633.08,0.00013972,2]
[332066466,1720947091875,-500.0,0.00013972,2]
[332066467,1720947091885,-500.0,0.00013972,2]
[332066468,1720947091895,-726.18,0.00013972,2]
[332066469,1720947091904,-500.0,0.00013972,2]
[332066470,1720947091914,-500.0,0.00013972,2]
[332066471,1720947091924,-500.0,0.00013972,2]
[332066472,1720947091933,-500.0,0.00013972,2]
[332066473,1720947091942,-1314.89,0.00013972,2]
[332066474,1720947091952,-1207.8,0.00013972,2]
[332066475,1720947091962,-649.26,0.00013972,2]
[332066476,1720947091972,-500.0,0.00013972,2]
[332066477,1720947091983,-606.84,0.00013972,2]
[332066478,1720947091993,-500.0,0.00013972,2]
[332066479,1720947092003,-2056.68,0.00013972,2]
[332066480,1720947092014,-1267.24,0.00013972,2]
[332066481,1720947092025,-9285.04,0.00013972,2]
[332066482,1720947092034,-500.0,0.00013972,2]
[332066483,1720947092043,-689.47,0.00013972,2]
[332066484,1720947092052,-952.82,0.00013972,2]
[332066485,1720947092061,-320.59441699,0.00013972,2]
[332066486,1720947092071,-735.83,0.00013972,2]
[332066487,1720947092081,-500.0,0.00013972,2]
[332066488,1720947092090,-1127.41,0.00013972,2]
[332066489,1720947092100,-1355.67,0.00013972,2]
[332066490,1720947092109,-1330.22,0.00013972,2]
[332066491,1720947092118,-934.95,0.00013972,2]
[332066492,1720947092127,-500.0,0.00013972,2]
[332066493,1720947092137,-1695.79,0.00013972,2]
[332066494,1720947092146,-971.35,0.00013972,2]
[332066495,1720947092155,-1144.44,0.00013972,2]
[332066496,1720947092165,-550.34133791,0.00013972,2]
[332066497,1720947092175,-500.0,0.00013972,2]
[332066498,1720947092184,-574.06,0.00013972,2]
[332066499,1720947092194,-500.0,0.00013972,2]
[332066500,1720947092203,-500.0,0.00013972,2]
[332066501,1720947092214,-736.42,0.00013972,2]
[332066502,1720947092224,-1114.59,0.00013972,2]
[332066503,1720947092234,-733.42,0.00013972,2]
[332066504,1720947092244,-500.0,0.00013972,2]
[332066505,1720947092254,-508.65,0.00013972,2]
[332066506,1720947092264,-1596.48,0.00013972,2]
[332066507,1720947092276,-3258.84,0.00013972,2]
[332066508,1720947092285,-471.4887628,0.00013972,2]
[332066509,1720947092294,-500.0,0.00013972,2]
[332066510,1720947092304,-883.17,0.00013972,2]
[332066511,1720947092315,-1701.98,0.00013972,2]
[332066512,1720947092324,-700.79,0.00013972,2]
[332066513,1720947092334,-500.0,0.00013972,2]
[332066514,1720947092343,-683.32,0.00013972,2]
[332066515,1720947092352,-1471.09,0.00013972,2]
[332066516,1720947092362,-500.0,0.00013972,2]
[332066517,1720947092371,-4796.73,0.00013972,2]
[332066518,1720947092382,-672.82,0.00013972,2]
[332066519,1720947092391,-931.53,0.00013972,2]
[332066520,1720947092400,-970.6,0.00013972,2]
[332066521,1720947092411,-1665.99,0.00013972,2]
[332066522,1720947092421,-500.0,0.00013972,2]
[332066523,1720947092432,-2213.79,0.00013972,2]
[332066524,1720947092441,-500.0,0.00013972,2]
[332066525,1720947092451,-500.0,0.00013972,2]
[332066526,1720947092461,-500.0,0.00013972,2]
[332066527,1720947092471,-2663.81,0.00013972,2]
[332066528,1720947092480,-500.0,0.00013972,2]
[332066529,1720947092494,-1949.1,0.00013972,2]
[332066530,1720947092503,-500.0,0.00013972,2]
[332066531,1720947092512,-662.37,0.00013972,2]
[332066532,1720947092523,-715.21,0.00013972,2]
[332066533,1720947092534,-804.22,0.00013972,2]
[332066534,1720947092543,-1012.47,0.00013972,2]
[332066535,1720947092553,-854.0,0.00013972,2]
[332066536,1720947092564,-539.7,0.00013972,2]
[332066537,1720947092573,-500.0,0.00013972,2]
[332066538,1720947092584,-3498.59,0.00013972,2]
[332066539,1720947092593,-500.0,0.00013972,2]
[332066540,1720947092603,-2309.41,0.00013972,2]
[332066541,1720947092614,-500.0,0.00013972,2]
[332066542,1720947092623,-1322.17,0.00013972,2]
[332066543,1720947092633,-969.16,0.00013972,2]
[332066544,1720947092642,-500.0,0.00013972,2]
[332066545,1720947092653,-500.0,0.00013972,2]
[332066546,1720947092663,-500.0,0.00013972,2]
[332066547,1720947092673,-505.71,0.00013972,2]
[332066548,1720947092682,-406.45811812,0.00013972,2]
[332066549,1720947093230,-93.54188188,0.00013972,2]
[332066550,1720947093240,-1122.06,0.00013972,2]
[332066551,1720947093250,-500.0,0.00013972,2]
[332066552,1720947093260,-500.0,0.00013972,2]
[332066553,1720947093270,-1179.1,0.00013972,2]
[332066554,1720947093281,-3769.96,0.00013972,2]
[332066555,1720947093290,-500.0,0.00013972,2]
[332066556,1720947093300,-500.0,0.00013972,2]
[332066557,1720947093310,-1261.08,0.00013972,2]
[332066558,1720947093320,-892.2,0.00013972,2]
[332066559,1720947093330,-500.0,0.00013972,2]
[332066560,1720947093339,-535.66,0.00013972,2]
[332066561,1720947093349,-500.0,0.00013972,2]
[332066562,1720947093359,-500.0,0.00013972,2]
[332066563,1720947093368,-613.04,0.00013972,2]
[332066564,1720947093378,-586.28,0.00013972,2]
[332066565,1720947093387,-1092.14,0.00013972,2]
[332066566,1720947093397,-500.0,0.00013972,2]
[332066567,1720947093406,-500.0,0.00013972,2]
[332066568,1720947093416,-673.86,0.00013972,2]
[332066569,1720947093425,-1595.8,0.00013972,2]
[332066570,1720947093435,-1055.17,0.00013972,2]
[332066571,1720947093445,-500.0,0.00013972,2]
[332066572,1720947093455,-500.0,0.00013972,2]
[332066573,1720947093464,-702.8,0.00013972,2]
[332066574,1720947093473,-500.0,0.00013972,2]
[332066575,1720947093484,-853.51,0.00013972,2]
[332066576,1720947093497,-935.92,0.00013972,2]
[332066577,1720947093508,-5987.23,0.00013972,2]
[332066578,1720947093517,-161.565756,0.00013972,2]
[332066579,1720947093534,-161.565756,0.00013972,2]
[332066580,1720947093545,-500.0,0.00013972,2]
[332066581,1720947093555,-2156.22,0.00013972,2]
[332066582,1720947093566,-500.0,0.00013972,2]
[332066583,1720947093577,-1679.1,0.00013972,2]
[332066584,1720947093587,-8434.82,0.00013972,2]
[332066585,1720947093596,-851.76,0.00013972,2]
[332066586,1720947093606,-161.565756,0.00013972,2]
[332066587,1720947093616,-1079.25,0.00013972,2]
[332066588,1720947093626,-161.565756,0.00013972,2]
[332066589,1720947093636,-1281.65,0.00013972,2]
[332066590,1720947093646,-708.04,0.00013972,2]
[332066591,1720947093657,-500.0,0.00013972,2]
[332066592,1720947093666,-679.39,0.00013972,2]
[332066593,1720947093676,-389.86873174,0.00013972,2]
[332066594,1720947093687,-911.76,0.00013972,2]
[332066595,1720947093697,-1619.47,0.00013972,2]
[332066596,1720947093708,-810.45,0.00013972,2]
[332066597,1720947093718,-500.0,0.00013972,2]
[332066598,1720947093728,-500.0,0.00013972,2]
[332066599,1720947093737,-670.51,0.00013972,2]
[332066600,1720947093747,-500.0,0.00013972,2]
[332066601,1720947093757,-500.0,0.00013972,2]
[332066602,1720947093766,-500.0,0.00013972,2]
[332066603,1720947093780,-732.36,0.00013972,2]
[332066604,1720947093790,-500.0,0.00013972,2]
[332066605,1720947093801,-1426.89,0.00013972,2]
[332066606,1720947093810,-2000.0,0.00013973,3]
[332066607,1720947093819,-262.0,0.00013995,2]
[332066608,1720947093829,-8675.55774516,0.00013997,2]
[332066609,1720947093839,-184.26530411,0.00013998,2]
[332066610,1720947093848,-483.07504708,0.00013998,2]
[332066611,1720947093858,-300.0,0.00013999,2]
[332066612,1720947093868,-300.0,0.00013999,2]
[332066613,1720947093878,-300.0,0.00013999,2]
[332066614,1720947093888,-300.0,0.00013999,2]
[332066615,1720947093899,-19676.37775848,0.00013999,2]
[332066616,1720947093908,-195.14528,0.00013999,2]
[332066617,1720947093918,-157.444662,0.00013999,2]
[332066618,1720947093927,-1040.087017,0.00013999,2]
[332066619,1720947093937,-579.531551,0.00013999,2]
[332066620,1720947093946,-902.176236,0.00013999,2]
[332066621,1720947093955,-1080.649684,0.00013999,2]
[332066622,1720947093965,-902.176236,0.00013999,2]
[332066623,1720947093974,-579.531552,0.00013999,2]
[332066624,1720947093984,-579.531552,0.00013999,2]
[332066625,1720947093993,-902.176236,0.00013999,2]
[332066626,1720947094003,-1040.087018,0.00013999,2]
[332066627,1720947094012,-579.531551,0.00013999,2]
[332066628,1720947094023,-902.176236,0.00013999,2]
[332066629,1720947094032,-1040.087017,0.00013999,2]
[332066630,1720947094042,-265543.06349087,0.00014,2]
[332066631,1720947094052,-166.30832334,0.00014,2]
[332066632,1720947094062,-911.79042944,0.00014,2]
[332066633,1720947094071,-44883.5836479,0.00014,2]
[332066634,1720947094084,-2306.87815915,0.00014,2]
[332066635,1720947094095,-1033.05017563,0.00014,2]
[332066636,1720947094109,-208257.34284902,0.00014,2]
[332066637,1720947094125,-1757.99426359,0.00014,2]
[332066638,1720947094137,-13035.54546639,0.00014,2]
[332066639,1720947094150,-403275.65987292,0.00014,2]
[332066640,1720947094162,-600.77169501,0.00014,2]
[332066641,1720947094174,-295.25514135,0.00014,2]
[332066642,1720947094223,-10268.71471278,0.00014,2]
[332066643,1720947094234,-615.2380825,0.00014,2]
[332066644,1720947094246,-960.84012494,0.00014,2]
[332066645,1720947094257,-677.99999947,0.00014,2]
[332066646,1720947094269,-674.79429573,0.00014,2]
[332066647,1720947094282,-383.87296915,0.00014,2]
[332066648,1720947094294,-544.68072996,0.00014,2]
[332066649,1720947094306,-295.12565298,0.00014,2]
[332066650,1720947094317,-501.50580398,0.00014,2]
[332066651,1720947094342,-500.0,0.00013863,2]
[332066652,1720947094351,-271.12580275,0.00014,2]
[332066653,1720947094363,-3821.0,0.00014,2]
[332066654,1720947094375,-4788.38967729,0.00014,2]
[332066655,1720947094393,-432.5,0.00013972,2]
[332066656,1720947094404,-67.5,0.00013972,2]
[332066657,1720947094414,-3313.95592052,0.00014,2]
[332066658,1720947094425,-6037.61331955,0.00014,2]
[332066659,1720947094444,-500.0,0.00013808,2]
[332066660,1720947094453,-31.0,0.00014,2]
[332066661,1720947095086,12294.1049,0.00010997,2]
[332066662,1720947097581,300.0,0.00010996,2]
[332066663,1720947098106,300.0,0.00010996,2]
[332066664,1720947099360,326.56,0.00010993,2]
[332066666,1720947176051,210.11476086,0.00010993,10]
[332066713,1720947352145,701.78551914,0.00010998,2]
[332066823,1720947549113,120000.0,0.00027,120]
[332066859,1720947574874,310.24,0.0001055,2]
[332067212,1720948164012,294.72,0.00010467,2]
[332067228,1720948232071,-1266.0,0.00011097,2]
[332067229,1720948232080,-300.0,0.00011097,2]
[332067230,1720948232089,-3713.70157571,0.00011098,2]
[332067231,1720948232098,-158.1388243,0.00011098,7]
[332067232,1720948232108,-1925.25072804,0.00011098,7]
[332067233,1720948232118,-917.22327281,0.00011098,2]
[332067234,1720948232127,-227.3638533,0.00011098,2]
[332067235,1720948232136,-158.06376973,0.00011098,2]
[332067236,1720948232146,-49426.75,0.00011098,2]
[332067237,1720948232155,-2014.51104555,0.00011478,2]
[332067238,1720948232164,-420.0,0.00012193,2]
[332067239,1720948232173,-6166.79,0.00012404,2]
[332067240,1720948232182,-250.0,0.00012416,2]
[332067241,1720948232192,-499.99,0.00012416,2]
[332067242,1720948232201,-499.99,0.00012416,2]
[332067243,1720948232211,-250.0,0.00012427,2]
[332067244,1720948232220,-305.37,0.00012436,2]
[332067245,1720948232230,-360.7,0.00012537,2]
[332067246,1720948232239,-190.09785607,0.00012687,2]
[332067247,1720948232248,-294.72,0.00012731,2]
[332067248,1720948232258,-1000.0,0.00012778,2]
[332067249,1720948232267,-334.38,0.00012896,2]
[332067250,1720948232277,-1250.0,0.00013,2]
[332067251,1720948232288,-419.54,0.00013041,2]
[332067252,1720948232298,-150.0,0.00013178,2]
[332067253,1720948232308,-354.85,0.00013178,2]
[332067254,1720948232318,-165.09,0.00013178,2]
[332067255,1720948232329,-165.09,0.00013178,2]
[332067256,1720948232340,-164.73,0.00013178,2]
[332067257,1720948232350,-3773.0855,0.0001328,2]
[332067258,1720948232359,-1040.087017,0.00013333,2]
[332067259,1720948232370,-611.710171,0.00013333,2]
[332067260,1720948232381,-174.576649,0.00013333,2]
[332067261,1720948232392,-902.176236,0.00013333,2]
[332067262,1720948232403,-6568.1093,0.0001338,2]
[332067263,1720948232412,-421.7047,0.0001338,2]
[332067264,1720948232422,-1000.0,0.0001338,2]
[332067265,1720948232431,-28959.5726,0.0001338,2]
[332067266,1720948232440,-587.0,0.00013398,2]
[332067267,1720948232449,-155.0,0.00013472,2]
[332067268,1720948232460,-1290.8254,0.00013498,2]
[332067269,1720948232471,-1040.087017,0.00013499,2]
[332067270,1720948232483,-611.710171,0.00013499,2]
[332067271,1720948232493,-902.176236,0.00013499,2]
[332067272,1720948232502,-12780.12103869,0.000135,2]
[332067273,1720948232512,-195.57060837,0.00013598,2]
[332067274,1720948232521,-314.87803833,0.00013598,2]
[332067275,1720948232531,-1000.0,0.00013598,2]
[332067276,1720948232540,-175.4342,0.00013598,2]
[332067277,1720948232549,-13563.9153,0.00013598,2]
[332067278,1720948232559,-22629.4028,0.00013598,2]
[332067279,1720948232569,-7500.0,0.00013598,2]
[332067280,1720948232578,-230.0229,0.00013652,2]
[332067281,1720948232587,-1040.087017,0.00013666,2]